bitfinex-derivatives/quotes_BTCF0:USTF0_20251028
["timestamp","ask_amount","ask_price","bid_price","bid_amount"]
[1761683648583,0.001,112540.0,112530.0,0.82053982]
[1761683649487,0.001,112540.0,112530.0,0.82321982]
[1761683650196,0.001,112540.0,112530.0,0.91208612]
[1761683650381,0.001,112540.0,112530.0,0.82053982]
[1761683650584,0.001,112540.0,112530.0,0.91208632]
[1761683650981,0.3608,112560.0,112550.0,0.04423]
[1761683651184,0.4193,112560.0,112550.0,0.18195]
[1761683651795,0.4193,112560.0,112550.0,1.68195]
[1761683652293,0.0605,112560.0,112550.0,1.68195]
[1761683652596,0.04744,112560.0,112550.0,1.68195]
[1761683652798,0.002,112560.0,112550.0,1.95977982]
[1761683653095,0.002,112560.0,112550.0,3.01211062]
[1761683653286,0.3608,112580.0,112570.0,0.04423]
[1761683653491,0.41522337,112590.0,112580.0,0.04423]
[1761683653687,0.38176903,112590.0,112580.0,0.33500982]
[1761683653896,0.03601,112600.0,112590.0,0.04423]
[1761683654101,0.04323922,112600.0,112590.0,0.18195]
[1761683654597,0.04323922,112600.0,112590.0,0.54275]
[1761683654787,0.06640922,112600.0,112590.0,0.18195]
[1761683654987,0.07946922,112600.0,112590.0,0.54275]
[1761683655199,0.04544,112600.0,112590.0,0.82057982]
[1761683655394,0.41547644,112610.0,112600.0,0.04423]
[1761683655596,0.4364297,112610.0,112600.0,0.04423]
[1761683655800,0.0585,112600.0,112590.0,0.18195]
[1761683655985,0.04644,112600.0,112590.0,0.18195]
[1761683656301,0.42952628,112630.0,112620.0,0.04423]
[1761683656502,0.0585,112620.0,112610.0,0.02176]
[1761683656794,0.44025068,112620.0,112610.0,0.18191]
[1761683657599,0.08845942,112620.0,112610.0,0.18191]
[1761683658089,0.02095068,112620.0,112610.0,0.45973982]
[1761683658287,0.02195068,112620.0,112610.0,0.82053982]
[1761683659193,0.0595,112620.0,112610.0,0.82049982]
[1761683659391,0.001,112620.0,112610.0,0.45969982]
[1761683659699,0.001,112620.0,112610.0,0.82049982]
[1761683660296,0.001,112620.0,112610.0,0.54267]
[1761683660498,0.001,112620.0,112610.0,0.82049982]
[1761683660893,0.001,112620.0,112610.0,0.54267]
[1761683661093,0.001,112620.0,112610.0,0.82049982]
[1761683661504,0.04644,112620.0,112610.0,0.82049982]
[1761683661705,0.04644,112620.0,112610.0,0.54267]
[1761683661998,0.001,112620.0,112610.0,0.45969982]
[1761683662201,0.001,112620.0,112610.0,0.82049982]
[1761683662603,0.02327,112620.0,112610.0,0.68285982]
[1761683662796,0.02327,112620.0,112610.0,0.82045982]
[1761683662998,0.001,112620.0,112610.0,0.82045982]
[1761683664899,0.001,112620.0,112610.0,0.54263]
[1761683665100,0.001,112620.0,112610.0,0.82045982]
[1761683666308,0.001,112620.0,112610.0,0.91194272]
[1761683666501,0.001,112620.0,112610.0,0.82045982]
[1761683666696,0.001,112620.0,112610.0,0.91194272]
[1761683666898,0.001,112620.0,112610.0,0.90926272]
[1761683667093,0.3608,112640.0,112610.0,0.91194272]
[1761683667302,0.40624,112650.0,112640.0,0.04423]
[1761683667603,0.40624,112650.0,112640.0,0.45961982]
[1761683667906,0.04544,112650.0,112640.0,0.45961982]
[1761683668107,0.04544,112650.0,112640.0,0.18179]
[1761683668296,0.04544,112650.0,112640.0,0.04423]
[1761683668297,0.40624,112650.0,112640.0,0.04423]
[1761683668501,0.40624,112650.0,112640.0,0.18179]
[1761683668796,0.40824,112650.0,112640.0,0.18179]
[1761683669198,0.40824,112650.0,112640.0,0.47256982]
[1761683669404,0.40824,112650.0,112640.0,0.45961982]
[1761683669701,0.04744,112650.0,112640.0,0.18179]
[1761683669907,0.002,112650.0,112640.0,0.47256982]
[1761683670502,0.04744,112650.0,112640.0,0.45961982]
[1761683670697,0.40824,112650.0,112640.0,0.18175]
[1761683671807,0.002,112650.0,112640.0,0.47252982]
[1761683672000,0.04744,112650.0,112640.0,0.18175]
[1761683672206,0.04744,112650.0,112640.0,0.45957982]
[1761683672896,0.04744,112650.0,112640.0,0.18175]
[1761683673110,0.40824,112650.0,112640.0,0.18175]
[1761683673305,0.40824,112650.0,112630.0,0.27782982]
[1761683673306,0.01306,112640.0,112630.0,0.02176]
[1761683673514,0.04544,112630.0,112620.0,0.18171]
[1761683673812,0.3608,112640.0,112630.0,0.04552]
[1761683674112,0.50028,112650.0,112640.0,0.04552]
[1761683674113,0.54346,112650.0,112640.0,0.04552]
[1761683674312,0.54146,112650.0,112640.0,0.04552]
[1761683676009,0.54146,112650.0,112640.0,0.47350982]
[1761683676010,0.40398,112650.0,112640.0,0.47350982]
[1761683676307,0.40598,112650.0,112640.0,0.183]
[1761683677907,0.40598,112650.0,112640.0,0.04552]
[1761683678214,0.40598,112650.0,112640.0,0.16036]
[1761683678603,0.04318,112630.0,112620.0,0.40632]
[1761683678805,0.05582,112620.0,112610.0,0.40632]
[1761683679012,0.05582,112620.0,112610.0,0.54376]
[1761683679219,0.04318,112620.0,112610.0,0.54376]
[1761683679419,0.04318,112620.0,112610.0,0.82158982]
[1761683679720,0.40498,112630.0,112620.0,0.04552]
[1761683680116,0.05582,112620.0,112610.0,0.38344]
[1761683680319,0.05582,112600.0,112590.0,0.04552]
[1761683680618,0.04318,112600.0,112590.0,0.46078982]
[1761683681313,0.40398,112610.0,112600.0,0.04552]
[1761683681520,0.04318,112610.0,112600.0,0.04552]
[1761683681721,0.40398,112610.0,112600.0,0.04552]
[1761683682120,0.04318,112610.0,112600.0,0.32334982]
[1761683682322,0.3608,112630.0,112610.0,0.02264]
[1761683682621,0.41662,112640.0,112630.0,0.04552]
[1761683682813,0.41662,112640.0,112630.0,0.46078982]
[1761683683014,0.40398,112640.0,112630.0,0.46078982]
[1761683683214,0.40398,112640.0,112630.0,0.18296]
[1761683683824,0.38425,112640.0,112630.0,0.46078982]
[1761683685624,0.3628,112640.0,112630.0,0.46078982]
[1761683685824,0.002,112640.0,112630.0,0.82158982]
[1761683687425,0.001,112640.0,112630.0,0.79870982]
[1761683687624,0.001,112640.0,112630.0,0.91037782]
[1761683687829,0.40398,112670.0,112660.0,0.04552]
[1761683688017,0.424977,112670.0,112660.0,0.18292]
[1761683688825,0.41324444,112670.0,112660.0,0.18292]
[1761683689022,0.43624225,112670.0,112660.0,0.18292]
[1761683689421,0.04318,112650.0,112640.0,0.69321982]
[1761683689820,0.04318,112650.0,112640.0,0.18292]
[1761683690021,0.04318,112650.0,112640.0,0.04552]
[1761683690226,0.04318,112650.0,112640.0,0.18292]
[1761683690427,0.04418,112650.0,112640.0,0.82154982]
[1761683690631,0.04418,112650.0,112640.0,0.46074982]
[1761683691027,0.04418,112650.0,112640.0,0.18292]
[1761683691219,0.02273,112650.0,112640.0,0.83061982]
[1761683691424,0.001,112650.0,112640.0,0.83061982]
[1761683691627,0.04418,112650.0,112640.0,0.83061982]
[1761683691825,0.04418,112650.0,112640.0,0.82154982]
[1761683692128,0.04418,112650.0,112640.0,0.18292]
[1761683692924,0.04418,112650.0,112630.0,0.63862982]
[1761683693131,0.37344,112660.0,112630.0,0.68414982]
[1761683693132,0.05582,112640.0,112630.0,0.68414982]
[1761683693431,0.04318,112640.0,112630.0,0.82150982]
[1761683693623,0.37344,112660.0,112630.0,0.82150982]
[1761683693824,0.04318,112650.0,112640.0,0.32334982]
[1761683694422,0.04318,112650.0,112640.0,0.68414982]
[1761683694620,0.04318,112650.0,112640.0,0.32334982]
[1761683694833,0.41324444,112670.0,112660.0,0.04552]
[1761683695128,0.07340022,112670.0,112660.0,0.18288]
[1761683695331,0.43420022,112670.0,112660.0,0.18288]
[1761683695824,0.43420022,112670.0,112660.0,0.13736]
[1761683696032,0.05582,112660.0,112650.0,0.02288]
[1761683696331,0.05582,112660.0,112650.0,0.16024]
[1761683696332,0.43757578,112660.0,112650.0,0.16024]
[1761683696926,0.07677578,112660.0,112650.0,0.18288]
[1761683697129,0.43757578,112660.0,112650.0,0.18288]
[1761683697428,0.02095578,112660.0,112650.0,0.46070982]
[1761683697629,0.43524461,112670.0,112660.0,0.04552]
[1761683697823,0.07444461,112670.0,112660.0,0.04552]
[1761683698023,0.07344461,112670.0,112660.0,0.04552]
[1761683698425,0.02100017,112670.0,112660.0,0.33602982]
[1761683698622,0.02100017,112670.0,112660.0,0.69682982]
[1761683698927,0.06518017,112670.0,112660.0,0.69682982]
[1761683699325,0.07416377,112670.0,112660.0,0.02288]
[1761683699529,0.43496377,112670.0,112660.0,0.1602]
[1761683699725,0.07416377,112670.0,112660.0,0.1602]
[1761683699926,0.07416377,112670.0,112660.0,0.02288]
[1761683700128,0.43496377,112670.0,112660.0,0.1602]
[1761683700331,0.07416377,112670.0,112660.0,0.1602]
[1761683700731,0.05582,112660.0,112650.0,0.04552]
[1761683701035,0.40498,112670.0,112660.0,0.04552]
[1761683701329,0.43512016,112670.0,112660.0,0.04552]
[1761683701525,0.022018,112670.0,112660.0,0.33602982]
[1761683701730,0.021018,112670.0,112660.0,0.79047621]
[1761683701925,0.021018,112670.0,112660.0,0.87924041]
[1761683702129,0.042468,112670.0,112660.0,0.79047621]
[1761683702332,0.04318,112670.0,112660.0,0.42967621]
[1761683702532,0.04318,112670.0,112660.0,0.04552]
[1761683702732,0.06520203,112670.0,112660.0,0.04552]
[1761683703033,0.04418,112670.0,112660.0,0.18284]
[1761683703336,0.04418,112670.0,112660.0,0.54364]
[1761683703537,0.02245,112670.0,112660.0,0.92979621]
[1761683703837,0.06519736,112670.0,112660.0,0.91711621]
[1761683704131,0.02201736,112670.0,112660.0,0.92949621]
[1761683704630,0.04527,112670.0,112660.0,0.54564]
[1761683705340,0.04527,112670.0,112660.0,0.59344962]
[1761683705637,0.04527,112680.0,112670.0,0.0445]
[1761683706237,0.55230825,112690.0,112680.0,0.0445]
[1761683707130,0.05809,112680.0,112670.0,0.0445]
[1761683707534,0.41889,112680.0,112670.0,0.0445]
[1761683707732,0.37362,112680.0,112660.0,0.02247]
[1761683707939,0.05809,112660.0,112650.0,0.18178]
[1761683708631,0.05809,112660.0,112650.0,0.22958962]
[1761683708837,0.05919,112660.0,112650.0,0.22958962]
[1761683709436,0.04527,112660.0,112650.0,0.59038962]
[1761683709740,0.05919,112660.0,112650.0,0.22958962]
[1761683709947,0.05919,112660.0,112650.0,0.25358962]
[1761683710542,0.05919,112660.0,112650.0,0.23458962]
[1761683710728,0.41999,112660.0,112650.0,0.005]
[1761683711236,0.0432,112650.0,112640.0,0.04780962]
[1761683711436,0.05712,112640.0,112630.0,0.04780962]
[1761683711643,0.41792,112640.0,112630.0,0.04437]
[1761683713535,0.0432,112630.0,112620.0,0.24533055]
[1761683713730,0.404,112630.0,112620.0,0.06368055]
[1761683713942,0.0432,112630.0,112620.0,0.06368055]
[1761683714246,0.54128,112630.0,112620.0,0.06368055]
[1761683714450,0.18048,112630.0,112620.0,0.10805055]
[1761683714641,0.54128,112630.0,112620.0,0.10805055]
[1761683715436,0.54128,112630.0,112620.0,0.06368055]
[1761683715641,0.05712,112620.0,112610.0,0.20092055]
[1761683715848,0.05712,112620.0,112610.0,0.22279055]
[1761683716441,0.05712,112620.0,112610.0,0.08555055]
[1761683717048,0.05712,112620.0,112610.0,0.10805055]
[1761683717247,0.0432,112620.0,112610.0,0.77664621]
[1761683717440,0.18048,112630.0,112620.0,0.02187]
[1761683717639,0.54128,112630.0,112620.0,0.08562839]
[1761683718341,0.54128,112630.0,112620.0,0.10812839]
[1761683718547,0.54128,112630.0,112620.0,0.08562839]
[1761683718940,0.54128,112630.0,112620.0,0.10812839]
[1761683719351,0.54128,112630.0,112620.0,0.06375839]
[1761683719542,0.05712,112620.0,112610.0,0.08575839]
[1761683719846,0.05712,112620.0,112610.0,0.04437]
[1761683720046,0.05712,112620.0,112610.0,0.40517]
[1761683720245,0.0432,112620.0,112610.0,0.40517]
[1761683720640,0.0432,112620.0,112610.0,0.40817]
[1761683721043,0.0432,112620.0,112610.0,0.43017]
[1761683721651,0.0432,112620.0,112610.0,0.50977069]
[1761683722747,0.05712,112620.0,112610.0,0.64701069]
[1761683722943,0.404,112630.0,112620.0,0.04437]
[1761683723147,0.0523096,112640.0,112630.0,0.04437]
[1761683723342,0.404,112650.0,112640.0,0.04437]
[1761683723640,0.0432,112650.0,112640.0,0.10813259]
[1761683723846,0.05246141,112650.0,112640.0,0.10813259]
[1761683724745,0.05246141,112650.0,112640.0,0.06376259]
[1761683724941,0.41326141,112650.0,112640.0,0.06376259]
[1761683725143,0.05712,112640.0,112630.0,0.24537776]
[1761683725349,0.05712,112640.0,112630.0,0.24537565]
[1761683726649,0.41792,112640.0,112630.0,0.24537565]
[1761683727240,0.05812,112640.0,112630.0,0.24537565]
[1761683727651,0.41892,112640.0,112630.0,0.24537565]
[1761683727855,0.05812,112640.0,112630.0,0.10813565]
[1761683728037,0.05812,112640.0,112630.0,0.24537565]
[1761683728556,0.41892,112640.0,112630.0,0.06376565]
[1761683728851,0.55612,112640.0,112630.0,0.06376565]
[1761683731645,0.0432,112630.0,112620.0,0.02187]
[1761683731958,0.404,112630.0,112620.0,0.04437]
[1761683732554,0.0432,112630.0,112620.0,0.04437]
[1761683734355,0.0432,112630.0,112620.0,0.12397069]
[1761683735145,0.04457,112620.0,112610.0,0.73394166]
[1761683735350,0.02129,112620.0,112610.0,0.606676]
[1761683735552,0.02129,112620.0,112610.0,0.5429]
[1761683735752,0.40537,112630.0,112620.0,0.0449]
[1761683736247,0.04457,112630.0,112620.0,0.0449]
[1761683736557,0.38209,112640.0,112630.0,0.0449]
[1761683736761,0.38209,112640.0,112630.0,0.55357621]
[1761683737153,0.41463141,112650.0,112640.0,0.0449]
[1761683737370,0.41463141,112650.0,112640.0,0.42973621]
[1761683737371,0.40537,112650.0,112640.0,0.42973621]
[1761683737552,0.04457,112650.0,112640.0,0.0449]
[1761683737860,0.40537,112650.0,112640.0,0.0449]
[1761683738060,0.04457,112650.0,112640.0,0.0449]
[1761683738361,0.05367625,112650.0,112640.0,0.05826]
[1761683738661,0.04457,112650.0,112640.0,0.42973621]
[1761683738852,0.41929,112660.0,112650.0,0.0449]
[1761683739053,0.3608,112670.0,112650.0,0.54286]
[1761683739352,0.43679473,112670.0,112660.0,0.0449]
[1761683739552,0.07599473,112670.0,112660.0,0.0449]
[1761683739754,0.05371179,112670.0,112660.0,0.0449]
[1761683739957,0.03043179,112670.0,112660.0,0.05787]
[1761683740562,0.05371179,112670.0,112660.0,0.05787]
[1761683740860,0.05371179,112670.0,112660.0,0.0449]
[1761683740861,0.05571179,112670.0,112660.0,0.0449]
[1761683741265,0.05571179,112670.0,112660.0,0.18206]
[1761683741473,0.002,112670.0,112660.0,0.19503]
[1761683741765,0.02329,112670.0,112660.0,0.92730621]
[1761683741959,0.002,112670.0,112660.0,0.92730621]
[1761683742264,0.00987097,112670.0,112660.0,0.55583]
[1761683742563,0.03116097,112670.0,112660.0,0.55583]
[1761683743061,0.03116097,112670.0,112660.0,0.19503]
[1761683743264,0.05444097,112670.0,112660.0,0.19503]
[1761683743860,0.05444097,112670.0,112660.0,0.18206]
[1761683744056,0.07673281,112670.0,112660.0,0.0449]
[1761683744260,0.07673281,112670.0,112660.0,0.18202]
[1761683744460,0.05444097,112670.0,112660.0,0.18202]
[1761683745861,0.001,112670.0,112660.0,0.92726621]
[1761683746062,0.001,112670.0,112660.0,0.56646621]
[1761683746263,0.001,112670.0,112660.0,0.92726621]
[1761683746462,0.001,112670.0,112660.0,0.55579]
[1761683746664,0.001,112670.0,112660.0,0.56646621]
[1761683746862,0.01009105,112670.0,112660.0,0.56646621]
[1761683747166,0.02229,112670.0,112660.0,0.92726621]
[1761683747870,0.04557,112670.0,112660.0,0.56646621]
[1761683748170,0.001,112670.0,112660.0,0.92726621]
[1761683749168,0.02229,112670.0,112660.0,0.92726621]
[1761683750173,0.001,112670.0,112660.0,0.92726621]
[1761683750472,0.04557,112670.0,112660.0,0.92726621]
[1761683750668,0.04557,112670.0,112660.0,0.77717621]
[1761683750861,0.04557,112670.0,112660.0,0.54278]
[1761683751065,0.04557,112670.0,112660.0,0.18198]
[1761683751266,0.06784648,112670.0,112660.0,0.18198]
[1761683752584,0.06784648,112670.0,112660.0,0.19495]
[1761683752880,0.001,112670.0,112660.0,0.55575]
[1761683753272,0.04557,112670.0,112660.0,0.56642621]
[1761683753478,0.04557,112670.0,112660.0,0.92722621]
[1761683753980,0.02229,112670.0,112660.0,0.92722621]
[1761683754189,0.001,112670.0,112660.0,0.92722621]
[1761683755088,0.04557,112670.0,112660.0,0.19495]
[1761683755282,0.04557,112670.0,112660.0,0.0449]
[1761683755482,0.04557,112670.0,112660.0,0.18194]
[1761683755685,0.40637,112670.0,112660.0,0.18194]
[1761683755887,0.06785816,112670.0,112660.0,0.18194]
[1761683756279,0.42865816,112670.0,112660.0,0.18194]
[1761683756479,0.06785816,112670.0,112660.0,0.18194]
[1761683757086,0.001,112670.0,112660.0,0.56638621]
[1761683757288,0.001,112670.0,112660.0,0.19491]
[1761683757489,0.001,112670.0,112660.0,0.56638621]
[1761683757881,0.04557,112670.0,112660.0,0.56638621]
[1761683758184,0.02229,112670.0,112660.0,0.92718621]
[1761683758578,0.02229,112670.0,112660.0,0.56638621]
[1761683758989,0.04557,112670.0,112660.0,0.56638621]
[1761683759192,0.06785573,112670.0,112660.0,0.56638621]
[1761683759380,0.06785573,112670.0,112660.0,0.18194]
[1761683759582,0.06785573,112670.0,112660.0,0.1819]
[1761683759987,0.42865573,112670.0,112660.0,0.0449]
[1761683760182,0.06785573,112670.0,112660.0,0.0449]
[1761683760579,0.05817,112660.0,112650.0,0.4057]
[1761683760882,0.54337,112670.0,112660.0,0.0449]
[1761683761079,0.40637,112670.0,112660.0,0.42934621]
[1761683761285,0.001,112670.0,112660.0,0.79014621]
[1761683761789,0.56515647,112680.0,112670.0,0.0449]
[1761683762089,0.58743346,112680.0,112670.0,0.0449]
[1761683762490,0.22663346,112680.0,112670.0,0.0449]
[1761683762686,0.58743346,112680.0,112670.0,0.0449]
[1761683764091,0.45043346,112680.0,112670.0,0.0449]
[1761683764292,0.45143346,112680.0,112670.0,0.0449]
[1761683764596,0.0447,112670.0,112660.0,0.68288433]
[1761683764780,0.0447,112670.0,112660.0,0.38289]
[1761683765185,0.06696176,112670.0,112660.0,0.3608]
[1761683765393,0.05732,112660.0,112650.0,0.40586]
[1761683765692,0.05732,112660.0,112650.0,0.04506]
[1761683766692,0.0447,112650.0,112640.0,0.04506]
[1761683766890,0.41812,112660.0,112650.0,0.04506]
[1761683767087,0.19428,112660.0,112650.0,0.68288433]
[1761683767288,0.57736987,112660.0,112650.0,0.32208433]
[1761683767488,0.0447,112650.0,112640.0,0.40586]
[1761683767689,0.0447,112650.0,112640.0,0.04506]
[1761683768390,0.0447,112650.0,112640.0,0.32208433]
[1761683769588,0.0447,112650.0,112640.0,0.32508433]
[1761683770293,0.0457,112650.0,112640.0,0.32208433]
[1761683770688,0.0457,112650.0,112640.0,0.04506]
[1761683770895,0.05705,112640.0,112630.0,0.02301]
[1761683771092,0.04414,112630.0,112620.0,0.04442]
[1761683771289,0.40494,112630.0,112620.0,0.04442]
[1761683771601,0.5419,112630.0,112620.0,0.02301]
[1761683771792,0.5419,112630.0,112620.0,0.04442]
[1761683771993,0.1811,112630.0,112620.0,0.04442]
[1761683772395,0.19401,112640.0,112630.0,0.04442]
[1761683772897,0.04414,112630.0,112620.0,0.06642]
[1761683773091,0.40494,112630.0,112620.0,0.022]
[1761683773600,0.40494,112630.0,112620.0,0.06942]
[1761683774090,0.40494,112630.0,112620.0,0.06642]
[1761683774495,0.0226,112620.0,112610.0,0.200736]
[1761683774698,0.06598045,112620.0,112610.0,0.38522033]
[1761683774999,0.06598045,112620.0,112610.0,0.32144433]
[1761683775797,0.06598045,112620.0,112610.0,0.34644433]
[1761683775997,0.40494,112630.0,112620.0,0.04442]
[1761683777002,0.40494,112630.0,112620.0,0.02301]
[1761683777293,0.41405965,112630.0,112620.0,0.02301]
[1761683777498,0.41405965,112630.0,112620.0,0.04442]
[1761683778100,0.05705,112620.0,112610.0,0.04442]
[1761683778290,0.05705,112620.0,112610.0,0.32144433]
[1761683778704,0.05705,112620.0,112610.0,0.04442]
[1761683779294,0.05705,112620.0,112610.0,0.06942]
[1761683780603,0.19401,112620.0,112610.0,0.34644433]
[1761683783198,0.19017965,112630.0,112620.0,0.04442]
[1761683783396,0.19017965,112630.0,112620.0,0.32144433]
[1761683783596,0.05705,112620.0,112610.0,0.34644433]
[1761683783796,0.05705,112620.0,112610.0,0.70724433]
[1761683784303,0.05705,112620.0,112610.0,0.68524433]
[1761683784802,0.05705,112620.0,112610.0,0.40822]
[1761683784803,0.04414,112620.0,112610.0,0.40822]
[1761683785011,0.04414,112620.0,112610.0,0.70724433]
[1761683785195,0.04414,112620.0,112610.0,0.42722]
[1761683785502,0.04414,112620.0,112610.0,0.70424433]
[1761683786403,0.05705,112620.0,112610.0,0.70424433]
[1761683786605,0.05705,112620.0,112610.0,0.42722]
[1761683786802,0.05705,112620.0,112610.0,0.34344433]
[1761683787004,0.05705,112620.0,112610.0,0.42722]
[1761683787301,0.05705,112620.0,112610.0,0.43082849]
[1761683787505,0.05705,112620.0,112610.0,0.70785282]
[1761683787701,0.05705,112620.0,112610.0,0.71085282]
[1761683788396,0.04414,112620.0,112610.0,0.71085282]
[1761683788902,0.04414,112620.0,112610.0,0.35005282]
[1761683789107,0.04414,112620.0,112610.0,0.71085282]
[1761683789306,0.05705,112620.0,112610.0,0.20990849]
[1761683789607,0.05705,112620.0,112610.0,0.35005282]
[1761683789797,0.05705,112620.0,112610.0,0.2505288]
[1761683789997,0.04414,112620.0,112610.0,0.2505288]
[1761683790398,0.05705,112620.0,112610.0,0.2505288]
[1761683792108,0.05705,112620.0,112610.0,0.07302849]
[1761683792301,0.05705,112620.0,112610.0,0.2505288]
[1761683792698,0.05705,112620.0,112610.0,0.6113288]
[1761683793307,0.04414,112620.0,112610.0,0.78882911]
[1761683794011,0.05775,112620.0,112610.0,0.07970849]
[1761683794302,0.05775,112620.0,112610.0,0.2572088]
[1761683794498,0.05775,112620.0,112610.0,0.6180088]
[1761683794899,0.77355062,112620.0,112610.0,0.02860849]
[1761683795098,0.59605031,112620.0,112610.0,0.02860849]
[1761683796008,0.59605031,112620.0,112610.0,0.05106849]
[1761683796208,0.59605031,112620.0,112610.0,0.07385849]
[1761683796998,0.41855,112620.0,112610.0,0.07385849]
[1761683797404,0.41855,112620.0,112610.0,0.2513588]
[1761683797799,0.59605031,112620.0,112610.0,0.2513588]
[1761683800615,0.41855,112620.0,112610.0,0.2513588]
[1761683801016,0.55539,112620.0,112610.0,0.2513588]
[1761683801316,0.73289031,112620.0,112610.0,0.2513588]
[1761683803107,0.55539,112620.0,112610.0,0.2513588]
[1761683803414,0.41855,112620.0,112610.0,0.2644788]
[1761683803606,0.19459,112620.0,112610.0,0.07385849]
[1761683803812,0.19459,112620.0,112610.0,0.2513588]
[1761683804114,0.91039062,112620.0,112610.0,0.02860849]
[1761683804412,0.93298721,112620.0,112610.0,0.02860823]
[1761683805318,0.73289031,112620.0,112610.0,0.25135854]
[1761683805514,0.02279,112590.0,112580.0,0.447036]
[1761683805817,0.04501,112590.0,112580.0,0.90630062]
[1761683806019,0.04501,112590.0,112580.0,0.97007662]
[1761683806316,0.01287,112600.0,112590.0,0.02246]
[1761683806519,0.05788,112600.0,112590.0,0.04525]
[1761683806709,0.05788,112600.0,112590.0,0.22275031]
[1761683806905,0.05788,112600.0,112590.0,0.04525]
[1761683807108,0.23538031,112600.0,112590.0,0.22275031]
[1761683807417,0.04501,112600.0,112590.0,0.59652031]
[1761683807613,0.04501,112600.0,112590.0,0.24072031]
[1761683807812,0.04501,112600.0,112590.0,0.60152031]
[1761683808222,0.05862,112600.0,112590.0,0.24072031]
[1761683808624,0.23712031,112600.0,112590.0,0.26375031]
[1761683808810,0.04601,112600.0,112590.0,0.41352031]
[1761683809220,0.23712031,112600.0,112590.0,0.40055031]
[1761683809726,0.59792031,112600.0,112590.0,0.041]
[1761683810020,0.77542062,112600.0,112590.0,0.1778]
[1761683810405,0.59792031,112600.0,112590.0,0.1778]
[1761683811413,0.59792031,112600.0,112590.0,0.041]
[1761683811414,0.77542062,112600.0,112590.0,0.041]
[1761683811620,0.77442062,112600.0,112590.0,0.005]
[1761683811810,0.79242062,112600.0,112590.0,0.1418]
[1761683812011,0.79242062,112600.0,112590.0,0.1368]
[1761683812614,0.02279,112580.0,112570.0,0.3608]
[1761683812823,0.23612031,112580.0,112570.0,0.35955031]
[1761683813011,0.59692031,112580.0,112570.0,0.35955031]
[1761683813207,0.60591264,112580.0,112570.0,0.35955031]
[1761683813520,0.06761233,112580.0,112570.0,0.35955031]
[1761683813715,0.42841233,112580.0,112570.0,0.35955031]
[1761683813924,0.60591264,112580.0,112570.0,0.22575031]
[1761683814220,0.60591264,112580.0,112570.0,0.36251031]
[1761683814425,0.60591264,112580.0,112570.0,0.16226]
[1761683814615,0.60591264,112580.0,112570.0,0.33976031]
[1761683814811,0.60591264,112580.0,112570.0,0.16222]
[1761683815007,0.60591264,112580.0,112570.0,0.18501]
[1761683815521,0.60791264,112580.0,112570.0,0.21601]
[1761683815716,0.60791264,112580.0,112570.0,0.034]
[1761683816017,0.60791264,112580.0,112570.0,0.19322]
[1761683817018,0.99291326,112580.0,112570.0,1e-08]
[1761683817223,0.97291326,112580.0,112570.0,1e-08]
[1761683817520,0.99559326,112580.0,112570.0,1e-08]
[1761683817713,0.74079124,112580.0,112570.0,1e-08]
[1761683817914,0.72079124,112580.0,112570.0,1e-08]
[1761683818120,0.7632242,112580.0,112570.0,1e-08]
[1761683818314,0.74179124,112580.0,112570.0,1e-08]
[1761683818516,0.04501,112570.0,112560.0,6.537e-05]
[1761683818716,0.05862,112540.0,112530.0,0.40605]
[1761683818922,0.05862,112540.0,112530.0,0.54281]
[1761683819720,0.05869702,112540.0,112530.0,0.54281]
[1761683820310,0.05869702,112540.0,112530.0,0.18201]
[1761683820514,7.702e-05,112540.0,112530.0,0.82050891]
[1761683820715,0.04501,112560.0,112550.0,0.04525]
[1761683820911,0.3938,112570.0,112560.0,0.02246]
[1761683820912,0.43881,112570.0,112560.0,0.02246]
[1761683821123,0.05862,112560.0,112550.0,0.18201]
[1761683821420,0.41942,112560.0,112550.0,0.18201]
[1761683821818,0.05862,112560.0,112550.0,0.04525]
[1761683822015,0.09262,112560.0,112550.0,0.18601]
[1761683822924,0.09262,112560.0,112550.0,0.04925]
[1761683823329,0.09262,112560.0,112550.0,0.14076]
[1761683823521,0.82573922,112560.0,112550.0,0.004]
[1761683823713,0.82841922,112560.0,112550.0,0.004]
[1761683824117,0.82841922,112560.0,112520.0,0.40493]
[1761683824118,0.04544,112530.0,112520.0,0.40493]
[1761683824521,0.40624,112530.0,112520.0,0.18089]
[1761683825013,0.04544,112530.0,112520.0,0.18089]
[1761683825229,0.02279,112530.0,112520.0,0.55014]
[1761683825533,0.05438925,112530.0,112520.0,0.54169]
[1761683825826,0.05438925,112530.0,112520.0,0.18089]
[1761683826031,0.05438925,112530.0,112520.0,0.15922]
[1761683826218,0.05638925,112530.0,112520.0,0.05613]
[1761683826419,0.05638925,112530.0,112520.0,0.17122]
[1761683826829,0.78950847,112530.0,112520.0,0.012]
[1761683827127,0.92626847,112530.0,112520.0,0.012]
[1761683827830,0.55394925,112530.0,112520.0,0.05651]
[1761683828026,0.55394925,112530.0,112520.0,0.012]
[1761683828729,0.04627,112490.0,112480.0,0.40732157]
[1761683829030,0.0375998,112490.0,112480.0,0.55717438]
[1761683829232,0.0375998,112490.0,112480.0,0.57023438]
[1761683829432,0.0375998,112490.0,112480.0,0.55714157]
[1761683829619,0.0375998,112490.0,112480.0,0.40732157]
[1761683829823,0.0405998,112490.0,112480.0,0.42532157]
[1761683830020,0.0405998,112490.0,112480.0,0.56208157]
[1761683830221,0.0405998,112490.0,112480.0,0.42532157]
[1761683830427,0.0405998,112490.0,112480.0,0.56208157]
[1761683830931,0.003,112490.0,112480.0,0.57514157]
[1761683831140,0.003,112490.0,112480.0,1.54746079]
[1761683831329,0.3608,112510.0,112480.0,0.93214079]
[1761683831633,0.40707,112510.0,112500.0,0.04644]
[1761683832027,0.40707,112510.0,112500.0,0.02333]
[1761683832221,0.40707,112510.0,112500.0,0.04644]
[1761683833129,0.55773,112520.0,112510.0,0.04644]
[1761683833330,0.19693,112520.0,112510.0,0.04644]
[1761683833525,0.13676,112520.0,112510.0,0.04644]